lending/lending_fUSD_20250920
["ID","MTS","AMOUNT","RATE_DAILY","PERIOD"]
[386514329,1758329437130,-416.52,0.0001951,2]
[386514330,1758329437140,-400.0,0.0001951,2]
[386514331,1758329437150,-524.33,0.0001951,2]
[386514332,1758329437160,-2790.67,0.0001951,2]
[386514333,1758329437170,-558.71,0.0001951,2]
[386514334,1758329437180,-168.0,0.00019621,2]
[386514335,1758329437190,-1187.2610229,0.00019651,2]
[386514336,1758329437201,-1126.0,0.00019656,2]
[386514337,1758329437211,-1187.2610229,0.00019679,2]
[386514338,1758329437222,-294.14704366,0.00019683,2]
[386514339,1758329437231,-477.67,0.000197,2]
[386514340,1758329437241,-1187.2610229,0.00019706,2]
[386514341,1758329437251,-1187.2610229,0.00019734,2]
[386514342,1758329437514,-936.24,0.0001975,2]
[386514343,1758329437526,-1642.76,0.0001975,2]
[386514344,1758329437536,-885.46,0.0001975,2]
[386514345,1758329437546,-485.06,0.0001975,2]
[386514346,1758329437555,-967.98,0.0001975,2]
[386514347,1758329437565,-1261.0,0.00019751,2]
[386514348,1758329437575,-921.0,0.00019751,2]
[386514349,1758329437585,-3392.0,0.00019751,2]
[386514350,1758329437595,-2040.0,0.00019751,2]
[386514351,1758329437605,-569.0,0.00019751,2]
[386514352,1758329437615,-602.0,0.00019751,2]
[386514353,1758329437626,-1581.0,0.00019751,2]
[386514354,1758329437636,-1304.0,0.00019751,2]
[386514355,1758329437645,-1178.0,0.00019751,2]
[386514356,1758329437655,-4229.0,0.00019751,2]
[386514357,1758329437665,-813.0,0.00019751,2]
[386514358,1758329437675,-4174.0,0.00019751,2]
[386514359,1758329437684,-6181.0,0.00019751,2]
[386514360,1758329437695,-727.0,0.00019751,2]
[386514361,1758329437705,-168.0,0.00019752,2]
[386514362,1758329437716,-1000.0,0.0001976,2]
[386514363,1758329437726,-1187.2610229,0.00019762,2]
[386514364,1758329437736,-1000.0,0.00019763,2]
[386514365,1758329437746,-152.0,0.00019774,3]
[386514366,1758329437756,-1186.5753389,0.00019782,5]
[386514368,1758329437766,-400.0,0.00019783,2]
[386514370,1758329437775,-400.0,0.00019783,2]
[386514372,1758329437785,-449.98,0.00019783,2]
[386514374,1758329437795,-400.0,0.00019783,2]
[386514376,1758329437805,-400.0,0.00019783,2]
[386514377,1758329437814,-400.0,0.00019783,2]
[386514379,1758329437825,-400.0,0.00019783,2]
[386514381,1758329437834,-410.13,0.00019783,2]
[386514383,1758329437844,-414.79,0.00019783,2]
[386514385,1758329437854,-400.0,0.00019783,2]
[386514387,1758329437864,-400.0,0.00019783,2]
[386514389,1758329437877,-400.0,0.00019783,2]
[386514391,1758329437887,-400.0,0.00019783,2]
[386514393,1758329437897,-406.13,0.00019783,2]
[386514395,1758329437907,-400.0,0.00019783,2]
[386514397,1758329437916,-400.0,0.00019783,2]
[386514399,1758329437926,-400.0,0.00019783,2]
[386514401,1758329437936,-430.35,0.00019783,2]
[386514404,1758329437946,-400.0,0.00019783,2]
[386514406,1758329437955,-400.0,0.00019783,2]
[386514408,1758329437965,-400.0,0.00019783,2]
[386514411,1758329437974,-400.0,0.00019783,2]
[386514412,1758329437983,-400.0,0.00019783,2]
[386514414,1758329437993,-400.0,0.00019783,2]
[386514417,1758329438003,-400.0,0.00019783,2]
[386514418,1758329438013,-406.25,0.00019783,2]
[386514420,1758329438023,-407.13,0.00019783,2]
[386514422,1758329438032,-400.0,0.00019783,2]
[386514424,1758329438042,-400.0,0.00019783,2]
[386514426,1758329438052,-400.0,0.00019783,2]
[386514428,1758329438062,-400.0,0.00019783,2]
[386514430,1758329438071,-400.0,0.00019783,2]
[386514432,1758329438081,-400.0,0.00019783,2]
[386514434,1758329438090,-400.0,0.00019783,2]
[386514436,1758329438099,-400.0,0.00019783,2]
[386514438,1758329438109,-400.0,0.00019783,2]
[386514440,1758329438118,-400.0,0.00019783,2]
[386514441,1758329438128,-400.0,0.00019783,2]
[386514443,1758329438138,-400.0,0.00019783,2]
[386514445,1758329438147,-400.0,0.00019783,2]
[386514447,1758329438157,-400.0,0.00019783,2]
[386514449,1758329438167,-400.0,0.00019783,2]
[386514451,1758329438177,-484.88,0.00019783,2]
[386514453,1758329438186,-400.0,0.00019783,2]
[386514455,1758329438196,-400.0,0.00019783,2]
[386514457,1758329438207,-400.0,0.00019783,2]
[386514459,1758329438217,-452.11,0.00019783,2]
[386514461,1758329438226,-400.0,0.00019783,2]
[386514463,1758329438236,-400.0,0.00019783,2]
[386514465,1758329438246,-473.07,0.00019783,2]
[386514467,1758329438256,-174.507017,0.00019783,2]
[386514469,1758329438266,-478.9,0.00019783,2]
[386514471,1758329438275,-277.782367,0.00019783,2]
[386514473,1758329438285,-293.780617,0.00019783,2]
[386514475,1758329438295,-400.0,0.00019783,2]
[386514477,1758329438305,-451.4,0.00019783,2]
[386514479,1758329438315,-400.0,0.00019783,2]
[386514480,1758329438324,-400.0,0.00019783,2]
[386514482,1758329438334,-400.0,0.00019783,2]
[386514484,1758329438343,-500.0,0.00019783,2]
[386514486,1758329438353,-564.16,0.00019783,2]
[386514488,1758329438363,-400.0,0.00019783,2]
[386514490,1758329438373,-457.12,0.00019783,2]
[386514491,1758329438382,-400.0,0.00019783,2]
[386514492,1758329438392,-400.0,0.00019783,2]
[386514493,1758329438402,-467.46,0.00019783,2]
[386514494,1758329438412,-741.28,0.00019783,2]
[386514495,1758329438422,-400.0,0.00019783,2]
[386514496,1758329438431,-400.0,0.00019783,2]
[386514497,1758329438441,-436.12,0.00019783,2]
[386514498,1758329438451,-400.0,0.00019783,2]
[386514499,1758329438460,-958.0,0.00019783,2]
[386514500,1758329438470,-1205.29,0.00019783,2]
[386514501,1758329438479,-559.42,0.00019783,2]
[386514502,1758329438489,-465.99,0.00019783,2]
[386514503,1758329438500,-400.0,0.00019783,2]
[386514505,1758329438509,-400.0,0.00019783,2]
[386514507,1758329438519,-440.7,0.00019783,2]
[386514509,1758329438529,-454.22,0.00019783,2]
[386514511,1758329438539,-400.0,0.00019783,2]
[386514513,1758329438548,-400.0,0.00019783,2]
[386514515,1758329438558,-1369.13,0.00019783,2]
[386514517,1758329438568,-463.16,0.00019783,2]
[386514519,1758329438577,-400.0,0.00019783,2]
[386514521,1758329438587,-400.0,0.00019783,2]
[386514523,1758329438597,-1246.93,0.00019783,2]
[386514525,1758329438607,-400.0,0.00019783,2]
[386514527,1758329438617,-400.0,0.00019783,2]
[386514529,1758329438627,-400.0,0.00019783,2]
[386514531,1758329438637,-400.0,0.00019783,2]
[386514533,1758329438646,-677.88,0.00019783,2]
[386514535,1758329438655,-400.0,0.00019783,2]
[386514537,1758329438665,-400.0,0.00019783,2]
[386514539,1758329438675,-400.0,0.00019783,2]
[386514541,1758329438685,-294.69262914,0.00019783,2]
[386514543,1758329438695,-412.06,0.00019783,2]
[386514545,1758329438705,-400.0,0.00019783,2]
[386514547,1758329438715,-596.3,0.00019783,2]
[386514549,1758329438724,-400.0,0.00019783,2]
[386514551,1758329438733,-400.0,0.00019783,2]
[386514553,1758329438743,-574.61,0.00019783,2]
[386514555,1758329438753,-400.0,0.00019783,2]
[386514557,1758329438763,-525.36,0.00019783,2]
[386514559,1758329438772,-675.75,0.00019783,2]
[386514561,1758329438782,-400.0,0.00019783,2]
[386514563,1758329438791,-400.0,0.00019783,2]
[386514565,1758329438801,-589.6,0.00019783,2]
[386514567,1758329438811,-400.0,0.00019783,2]
[386514569,1758329438820,-400.0,0.00019783,2]
[386514571,1758329438830,-546.01,0.00019783,2]
[386514573,1758329438840,-520.21,0.00019783,2]
[386514575,1758329438849,-532.65,0.00019783,2]
[386514577,1758329438859,-400.0,0.00019783,2]
[386514579,1758329438869,-400.0,0.00019783,2]
[386514581,1758329438879,-400.0,0.00019783,2]
[386514583,1758329438888,-400.0,0.00019783,2]
[386514585,1758329438898,-493.17,0.00019783,2]
[386514587,1758329438908,-1347.24,0.00019783,2]
[386514589,1758329438917,-600.21,0.00019783,2]
[386514592,1758329438928,-400.0,0.00019783,2]
[386514594,1758329438938,-400.0,0.00019783,2]
[386514596,1758329438947,-619.83,0.00019783,2]
[386514598,1758329438956,-400.0,0.00019783,2]
[386514600,1758329438966,-640.36,0.00019783,2]
[386514602,1758329438976,-500.0,0.00019783,2]
[386514604,1758329438986,-1552.81,0.00019783,2]
[386514606,1758329438996,-444.04,0.00019783,2]
[386514608,1758329439006,-424.21,0.00019783,2]
[386514610,1758329439016,-599.26656051,0.00019783,2]
[386514612,1758329439030,-645.61343949,0.00019783,2]
[386514614,1758329439039,-404.18508143,0.00019783,2]
[386514617,1758329439055,-388.12491857,0.00019783,2]
[386514619,1758329439065,-1777.83,0.00019783,2]
[386514621,1758329439075,-400.0,0.00019783,2]
[386514623,1758329439085,-400.0,0.00019783,2]
[386514625,1758329439095,-400.0,0.00019783,2]
[386514627,1758329439105,-400.0,0.00019783,2]
[386514629,1758329439115,-538.97,0.00019783,2]
[386514631,1758329439126,-588.3,0.00019783,2]
[386514633,1758329439136,-749.83,0.00019783,2]
[386514635,1758329439146,-414.55,0.00019783,2]
[386514637,1758329439156,-400.0,0.00019783,2]
[386514640,1758329439166,-400.0,0.00019783,2]
[386514641,1758329439176,-1094.58,0.00019783,2]
[386514644,1758329439185,-400.0,0.00019783,2]
[386514646,1758329439195,-405.63,0.00019783,2]
[386514648,1758329439205,-400.0,0.00019783,2]
[386514650,1758329439217,-670.09,0.00019783,2]
[386514652,1758329439227,-400.0,0.00019784,2]
[386514654,1758329439236,-400.0,0.00019784,2]
[386514656,1758329439246,-400.0,0.00019784,2]
[386514658,1758329439255,-400.0,0.00019784,2]
[386514660,1758329439264,-400.0,0.00019784,2]
[386514662,1758329439274,-400.0,0.00019784,2]
[386514664,1758329439283,-400.0,0.00019784,2]
[386514666,1758329439293,-400.0,0.00019784,2]
[386514668,1758329439302,-400.0,0.00019784,2]
[386514670,1758329439312,-400.0,0.00019784,2]
[386514672,1758329439321,-400.0,0.00019784,2]
[386514674,1758329439331,-400.0,0.00019784,2]
[386514676,1758329439340,-400.0,0.00019784,2]
[386514678,1758329439350,-400.0,0.00019784,2]
[386514680,1758329439359,-402.24,0.00019784,2]
[386514682,1758329439369,-400.0,0.00019784,2]
[386514684,1758329439378,-400.0,0.00019784,2]
[386514686,1758329439388,-400.0,0.00019784,2]
[386514688,1758329439397,-400.0,0.00019784,2]
[386514690,1758329439407,-539.68604566,0.00019784,2]
[386514692,1758329439416,-400.0,0.00019784,2]
[386514694,1758329439426,-400.0,0.00019784,2]
[386514696,1758329439435,-400.0,0.00019784,2]
[386514698,1758329439445,-400.0,0.00019784,2]
[386514700,1758329439458,-400.0,0.00019784,2]
[386514702,1758329439468,-400.0,0.00019784,2]
[386514704,1758329439478,-400.0,0.00019784,2]
[386514706,1758329439487,-400.0,0.00019784,2]
[386514708,1758329439499,-400.0,0.00019784,2]
[386514710,1758329439508,-400.0,0.00019784,2]
[386514712,1758329439518,-406.41,0.00019784,2]
[386514714,1758329439530,-400.0,0.00019784,2]
[386514716,1758329439540,-400.0,0.00019784,2]
[386514719,1758329439550,-435.31,0.00019784,2]
[386514721,1758329439560,-400.0,0.00019784,2]
[386514723,1758329439569,-400.0,0.00019784,2]
[386514725,1758329439579,-400.0,0.00019784,2]
[386514727,1758329439588,-400.0,0.00019784,2]
[386514729,1758329439598,-400.0,0.00019784,2]
[386514731,1758329439607,-400.0,0.00019784,2]
[386514733,1758329439616,-334.09225323,0.00019784,2]
[386514735,1758329439626,-400.0,0.00019784,2]
[386514737,1758329439636,-400.0,0.00019784,2]
[386514739,1758329439645,-400.0,0.00019784,2]
[386514740,1758329439654,-400.0,0.00019784,2]
[386514743,1758329439664,-400.0,0.00019784,2]
[386514745,1758329439674,-400.0,0.00019784,2]
[386514747,1758329439683,-400.0,0.00019784,2]
[386514749,1758329439693,-493.1,0.00019784,2]
[386514751,1758329439703,-400.0,0.00019784,2]
[386514753,1758329439712,-401.89,0.00019784,2]
[386514755,1758329439722,-400.0,0.00019784,2]
[386514757,1758329439732,-400.0,0.00019784,2]
[386514759,1758329439742,-400.0,0.00019784,2]
[386514761,1758329439751,-400.0,0.00019784,2]
[386514763,1758329439761,-400.0,0.00019784,2]
[386514765,1758329439770,-577.5,0.00019784,2]
[386514767,1758329439780,-400.0,0.00019784,2]
[386514769,1758329439789,-400.0,0.00019784,2]
[386514771,1758329439799,-400.0,0.00019784,2]
[386514773,1758329439808,-400.0,0.00019784,2]
[386514775,1758329439818,-558.8,0.00019784,2]
[386514777,1758329439828,-400.0,0.00019784,2]
[386514779,1758329439837,-400.0,0.00019784,2]
[386514781,1758329439847,-400.0,0.00019784,2]
[386514783,1758329439856,-400.0,0.00019784,2]
[386514785,1758329439865,-400.0,0.00019784,2]
[386514795,1758329439952,-400.0,0.00019784,2]
[386514798,1758329439961,-400.0,0.00019784,2]
[386514800,1758329439971,-400.0,0.00019784,2]
[386514802,1758329439981,-400.0,0.00019784,2]
[386514804,1758329439991,-400.0,0.00019784,2]
[386514806,1758329440001,-716.15,0.00019784,2]
[386514808,1758329440011,-400.0,0.00019784,2]
[386514810,1758329440020,-68.89510587,0.00019784,2]
[386514853,1758329440404,-331.10489413,0.00019784,2]
[386514855,1758329440414,-400.0,0.00019784,2]
[386514857,1758329440423,-405.19,0.00019784,2]
[386514859,1758329440432,-400.0,0.00019784,2]
[386514861,1758329440442,-410.14,0.00019784,2]
[386514863,1758329440452,-411.36,0.00019784,2]
[386514865,1758329440461,-400.0,0.00019784,2]
[386514867,1758329440470,-175.75005393,0.00019784,2]
[386514869,1758329440479,-400.0,0.00019784,2]
[386514871,1758329440489,-400.0,0.00019784,2]
[386514873,1758329440498,-472.5,0.00019784,2]
[386514875,1758329440508,-400.0,0.00019784,2]
[386514877,1758329440517,-400.0,0.00019784,2]
[386514879,1758329440526,-400.0,0.00019784,2]
[386514881,1758329440536,-506.98,0.00019784,2]
[386514883,1758329440545,-400.0,0.00019784,2]
[386514885,1758329440554,-400.0,0.00019784,2]
[386514887,1758329440564,-400.0,0.00019784,2]
[386514889,1758329440573,-400.0,0.00019784,2]
[386514891,1758329440582,-400.0,0.00019784,2]
[386514893,1758329440591,-265.56344145,0.00019784,2]
[386514895,1758329440601,-400.0,0.00019784,2]
[386514897,1758329440610,-395.07513659,0.00019784,2]
[386514899,1758329440619,-400.0,0.00019784,2]
[386514901,1758329440628,-615.52,0.00019784,2]
[386514903,1758329440638,-400.0,0.00019784,2]
[386514905,1758329440647,-400.0,0.00019784,2]
[386514907,1758329440656,-400.0,0.00019784,2]
[386514909,1758329440665,-513.01,0.00019784,2]
[386514911,1758329440674,-400.0,0.00019784,2]
[386514913,1758329440684,-416.4,0.00019784,2]
[386514915,1758329440693,-492.03,0.00019784,2]
[386514917,1758329440703,-400.0,0.00019784,2]
[386514919,1758329440713,-400.0,0.00019784,2]
[386514921,1758329440722,-400.0,0.00019784,2]
[386514923,1758329440732,-400.0,0.00019784,2]
[386514925,1758329440741,-440.32,0.00019784,2]
[386514927,1758329440750,-411.99,0.00019784,2]
[386514929,1758329440760,-400.0,0.00019784,2]
[386514931,1758329440769,-400.0,0.00019784,2]
[386514933,1758329440779,-400.0,0.00019784,2]
[386514935,1758329440788,-400.0,0.00019784,2]
[386514937,1758329440797,-400.0,0.00019784,2]
[386514939,1758329440806,-448.41,0.00019784,2]
[386514941,1758329440815,-400.0,0.00019784,2]
[386514943,1758329440825,-407.22,0.00019784,2]
[386514944,1758329440834,-432.73,0.00019784,2]
[386514947,1758329440845,-400.0,0.00019784,2]
[386514949,1758329440855,-400.0,0.00019784,2]
[386514951,1758329440865,-400.0,0.00019784,2]
[386514953,1758329440874,-400.0,0.00019784,2]
[386514955,1758329440884,-400.0,0.00019784,2]
[386514957,1758329440893,-400.0,0.00019784,2]
[386514959,1758329440902,-400.0,0.00019784,2]
[386514961,1758329440912,-400.0,0.00019784,2]
[386514963,1758329440921,-400.0,0.00019784,2]
[386514965,1758329440931,-466.52,0.00019784,2]
[386514967,1758329440940,-400.0,0.00019784,2]
[386514969,1758329440949,-400.0,0.00019784,2]
[386514971,1758329440958,-400.0,0.00019784,2]
[386514973,1758329440967,-400.0,0.00019784,2]
[386514975,1758329440976,-400.0,0.00019784,2]
[386514977,1758329440986,-400.0,0.00019784,2]
[386514979,1758329440995,-459.98,0.00019784,2]
[386514981,1758329441005,-400.0,0.00019784,2]
[386514983,1758329441014,-400.0,0.00019784,2]
[386514985,1758329441024,-400.0,0.00019784,2]
[386514987,1758329441033,-400.0,0.00019784,2]
[386514989,1758329441043,-400.0,0.00019784,2]
[386514991,1758329441052,-400.0,0.00019784,2]
[386514993,1758329441061,-400.0,0.00019784,2]
[386514994,1758329441071,-400.0,0.00019784,2]
[386514997,1758329441081,-400.0,0.00019784,2]
[386514999,1758329441091,-464.64,0.00019784,2]
[386515001,1758329441100,-400.0,0.00019784,2]
[386515003,1758329441109,-400.0,0.00019784,2]
[386515005,1758329441119,-543.02,0.00019784,2]
[386515007,1758329441128,-400.0,0.00019784,2]
[386515009,1758329441138,-408.67,0.00019784,2]
[386515011,1758329441147,-400.0,0.00019784,2]
[386515013,1758329441156,-400.0,0.00019784,2]
[386515015,1758329441168,-400.0,0.00019784,2]
[386515017,1758329441177,-400.0,0.00019784,2]
[386515019,1758329441187,-400.0,0.00019784,2]
[386515021,1758329441196,-400.0,0.00019784,2]
[386515023,1758329441206,-400.0,0.00019784,2]
[386515025,1758329441215,-431.84,0.00019784,2]
[386515027,1758329441224,-400.0,0.00019784,2]
[386515029,1758329441233,-400.0,0.00019784,2]
[386515031,1758329441243,-400.0,0.00019784,2]
[386515033,1758329441252,-571.18,0.00019784,2]
[386515034,1758329441262,-464.95,0.00019784,2]
[386515035,1758329441271,-400.0,0.00019784,2]
[386515036,1758329441280,-638.44,0.00019784,2]
[386515037,1758329441289,-509.55,0.00019784,2]
[386515038,1758329441299,-411.85,0.00019784,2]
[386515039,1758329441308,-400.0,0.00019784,2]
[386515040,1758329441317,-451.45,0.00019784,2]
[386515041,1758329441329,-496.16,0.00019784,2]
[386515042,1758329441339,-407.72,0.00019784,2]
[386515043,1758329441348,-1515.57,0.00019784,2]
[386515044,1758329441357,-400.0,0.00019784,2]
[386515045,1758329441366,-453.26,0.00019784,2]
[386515046,1758329441375,-400.0,0.00019784,2]
[386515047,1758329441385,-493.71,0.00019784,2]
[386515048,1758329441395,-511.91,0.00019784,2]
[386515049,1758329441404,-1612.97,0.00019784,2]
[386515050,1758329441413,-446.96,0.00019784,2]
[386515051,1758329441423,-561.58,0.00019784,2]
[386515052,1758329441432,-1000.0,0.00019784,2]
[386515053,1758329441442,-400.0,0.00019784,2]
[386515054,1758329441454,-400.0,0.00019784,2]
[386515055,1758329441464,-400.0,0.00019784,2]
[386515056,1758329441473,-792.49,0.00019784,2]
[386515057,1758329441482,-427.66,0.00019784,2]
[386515058,1758329441492,-2811.03,0.00019784,2]
[386515059,1758329441501,-465.17,0.00019784,2]
[386515060,1758329441510,-423.07,0.00019784,2]
[386515061,1758329441520,-670.32,0.00019784,2]
[386515062,1758329441529,-3057.04,0.00019784,2]
[386515063,1758329441539,-675.97,0.00019784,2]
[386515064,1758329441548,-469.17,0.00019784,2]
[386515065,1758329441557,-499.02,0.00019784,2]
[386515066,1758329441567,-554.65,0.00019784,2]
[386515067,1758329441578,-524.91,0.00019784,2]
[386515068,1758329441587,-400.0,0.00019784,2]
[386515069,1758329441596,-672.15,0.00019784,2]
[386515070,1758329441606,-505.44,0.00019784,2]
[386515071,1758329441616,-446.53,0.00019784,2]
[386515072,1758329441626,-594.04,0.00019784,2]
[386515073,1758329441635,-498.56,0.00019784,2]
[386515074,1758329441645,-400.0,0.00019784,2]
[386515075,1758329441655,-600.05,0.00019784,2]
[386515076,1758329441665,-400.0,0.00019784,2]
[386515077,1758329441674,-400.0,0.00019784,2]
[386515078,1758329441684,-416.52,0.00019784,2]
[386515079,1758329441693,-310.28,0.00019784,2]
[386515080,1758329441703,-524.33,0.00019784,2]
[386515081,1758329441713,-2790.67,0.00019784,2]
[386515082,1758329441722,-558.71,0.00019784,2]
[386515083,1758329441731,-1187.2610229,0.00019789,2]
[386515084,1758329441741,-698.01370356,0.0001979,2]
[386515085,1758329441750,-953.847208,0.000198,2]
[386515086,1758329441760,-1000.0,0.000198,2]
[386515087,1758329441770,-1345.74745,0.000198,2]
[386515088,1758329441779,-1425.0,0.00019809,2]
[386515089,1758329441788,-1000.0,0.0001981,2]
[386515090,1758329441798,-251.44022573,0.00019814,2]
[386515091,1758329441808,-1187.2610229,0.00019817,2]
[386515092,1758329441817,-532.07528659,0.00019818,2]
[386515093,1758329441827,-1000.0,0.00019827,2]
[386515094,1758329441836,-855.61,0.00019834,2]
[386515095,1758329441846,-200.0,0.0001984,2]
[386515096,1758329441855,-1425.0,0.00019843,2]
[386515097,1758329441865,-1187.2610229,0.00019845,2]
[386515098,1758329441874,-823.21816313,0.0001985,2]
[386515099,1758329441884,-150.0,0.00019863,2]
[386515100,1758329441893,-1425.0,0.00019866,2]
[386515101,1758329441903,-1187.2610229,0.00019872,2]
[386515102,1758329441912,-1000.0,0.00019874,2]
[386515103,1758329441921,-1425.0,0.00019891,2]
[386515104,1758329441931,-2113.2274,0.000199,2]
[386515105,1758329441940,-2162.24,0.000199,2]
[386515106,1758329441949,-5800.0,0.000199,2]
[386515107,1758329441960,-1345.74746,0.000199,2]
[386515108,1758329441969,-1187.2610229,0.000199,2]
[386515109,1758329441979,-568.96858206,0.000199,2]
[386515110,1758329441988,-211.699729,0.000199,2]
[386515111,1758329441997,-396.58010834,0.000199,2]
[386515112,1758329442007,-1934.95502779,0.000199,2]
[386515113,1758329442017,-10017.43826157,0.000199,2]
[386515114,1758329442026,-183.79283244,0.000199,3]
[386515115,1758329442036,-150.0,0.00019904,2]
[386515116,1758329442046,-1086.5,0.00019918,2]
[386515117,1758329442055,-900.0,0.00019923,2]
[386515118,1758329442065,-500.0,0.00019923,2]
[386515119,1758329442074,-1425.0,0.00019924,2]
[386515120,1758329442083,-220.7,0.00019932,2]
[386515121,1758329442093,-822.67,0.00019933,2]
[386515122,1758329442103,-411.44,0.00019933,2]
[386515123,1758329442112,-150.0,0.00019933,2]
[386515124,1758329442122,-1086.94,0.00019933,2]
[386515125,1758329442131,-543.54,0.00019933,2]
[386515126,1758329442141,-151.81498266,0.00019938,2]
[386515127,1758329442150,-150.0,0.00019938,2]
[386515128,1758329442160,-150.0,0.00019938,2]
[386515129,1758329442169,-150.0,0.00019938,2]
[386515130,1758329442179,-150.0,0.00019938,2]
[386515131,1758329442189,-150.0,0.00019938,2]
[386515132,1758329442199,-150.0,0.00019938,2]
[386515133,1758329442208,-150.0,0.00019938,2]
[386515134,1758329442218,-200.75598379,0.00019938,2]
[386515135,1758329442227,-150.0,0.00019938,2]
[386515136,1758329442237,-150.0,0.00019938,2]
[386515137,1758329442246,-150.0,0.00019938,2]
[386515138,1758329442260,-500.0,0.00019938,2]
[386515139,1758329442269,-430.0,0.00019938,2]
[386515140,1758329442279,-563.0,0.00019938,2]
[386515141,1758329442289,-150.0,0.00019938,2]
[386515142,1758329442298,-2279.0,0.00019938,2]
[386515143,1758329442308,-150.0,0.00019938,2]
[386515144,1758329442317,-150.0,0.00019938,2]
[386515145,1758329442326,-789.0,0.00019938,2]
[386515146,1758329442336,-150.0,0.00019938,2]
[386515147,1758329442345,-152.07398961,0.00019938,2]
[386515148,1758329442355,-150.0,0.00019938,2]
[386515149,1758329442364,-150.0,0.00019938,2]
[386515150,1758329442374,-500.0,0.00019938,2]
[386515151,1758329442384,-150.0,0.00019938,2]
[386515152,1758329442393,-500.0,0.00019938,2]
[386515153,1758329442403,-500.0,0.00019938,2]
[386515154,1758329442413,-520.0,0.00019938,2]
[386515155,1758329442422,-150.0,0.00019938,2]
[386515156,1758329442432,-150.0,0.00019938,2]
[386515157,1758329442441,-152.70771985,0.00019938,2]
[386515158,1758329442450,-500.0,0.00019938,2]
[386515159,1758329442460,-500.0,0.00019938,2]
[386515160,1758329442470,-595.0,0.00019938,2]
[386515161,1758329442479,-500.0,0.00019938,2]
[386515162,1758329442489,-200.0,0.00019938,2]
[386515163,1758329442498,-500.0,0.00019938,2]
[386515164,1758329442511,-599.0,0.00019938,2]
[386515165,1758329442521,-150.0,0.00019938,2]
[386515166,1758329442531,-150.0,0.00019941,2]
[386515167,1758329442541,-150.0,0.00019941,2]
[386515168,1758329442551,-1000.0,0.00019959,2]
[386515169,1758329442560,-150.0,0.0001996,2]
[386515170,1758329442570,-150.0,0.00019964,2]
[386515171,1758329442580,-500.0,0.00019973,2]
[386515172,1758329442589,-500.0,0.00019973,2]
[386515173,1758329442599,-500.0,0.00019973,2]
[386515174,1758329442608,-500.0,0.00019973,2]
[386515175,1758329442619,-500.0,0.00019973,2]
[386515176,1758329442632,-502.96237646,0.00019973,2]
[386515177,1758329442642,-500.0,0.00019973,2]
[386515178,1758329442651,-500.0,0.00019973,2]
[386515179,1758329442661,-500.0,0.00019973,2]
[386515180,1758329442671,-500.0,0.00019973,2]
[386515181,1758329442681,-500.0,0.0001998,2]